fUSD/lending_fUSD_20240327
["ID","MTS","AMOUNT","RATE_DAILY","PERIOD"]
[320747479,1711543932030,-205.93218253,0.00019178,2]
[320747480,1711543932040,-206.72187177,0.00019178,2]
[320747481,1711543932050,-500.0,0.00019178,2]
[320747482,1711543932060,-500.0,0.00019178,2]
[320747483,1711543932070,-500.0,0.00019178,2]
[320747484,1711543932080,-500.0,0.00019178,2]
[320747485,1711543932090,-500.0,0.00019178,2]
[320747486,1711543932102,-500.0,0.00019178,2]
[320747487,1711543932112,-500.0,0.00019178,2]
[320747488,1711543932122,-500.0,0.00019178,2]
[320747489,1711543932132,-500.0,0.00019178,2]
[320747490,1711543932144,-500.0,0.00019178,2]
[320747491,1711543932154,-500.0,0.00019178,2]
[320747492,1711543932164,-500.0,0.00019178,2]
[320747493,1711543932173,-500.0,0.00019178,2]
[320747494,1711543932183,-500.0,0.00019178,2]
[320747495,1711543932194,-500.0,0.00019178,2]
[320747496,1711543932204,-500.0,0.00019178,2]
[320747497,1711543932214,-500.0,0.00019178,2]
[320747498,1711543932224,-500.0,0.00019178,2]
[320747499,1711543932234,-150.0,0.00039889,2]
[320747500,1711543932244,-150.0,0.00040789,2]
[320747501,1711543932255,-150.0,0.00040834,2]
[320747502,1711543932266,-150.0,0.00040879,2]
[320747503,1711543932277,-150.0,0.00040895,2]
[320747504,1711543932287,-150.0,0.000409,2]
[320747505,1711543932298,-150.0,0.00040919,2]
[320747506,1711543932309,-150.0,0.00040943,2]
[320747507,1711543932319,-150.0,0.0004096,2]
[320747508,1711543932330,-150.0,0.00040995,2]
[320747509,1711543932340,-150.88,0.00052,120]
[320747510,1711543932350,-150.88,0.00052,120]
[320747511,1711543932360,-150.88,0.00052,120]
[320747512,1711543932370,-150.88,0.00052,120]
[320747513,1711543932381,-150.88,0.00052,120]
[320747514,1711543932394,-150.88,0.00052,120]
[320747515,1711543932411,-150.88,0.00052,120]
[320747516,1711543932423,-150.88,0.00052,120]
[320747517,1711543932434,-150.88,0.00052,120]
[320747518,1711543932444,-150.88,0.00052,120]
[320747519,1711543932456,-150.88,0.00052,120]
[320747520,1711543932467,-150.88,0.00052,120]
[320747521,1711543932477,-150.88,0.00052,120]
[320747522,1711543932488,-150.88,0.00052,120]
[320747523,1711543932498,-150.88,0.00052,120]
[320747524,1711543932508,-150.88,0.00052,120]
[320747525,1711543932518,-150.88,0.00052,120]
[320747526,1711543932529,-500.0,0.00054794,120]
[320747527,1711543932539,-500.0,0.00054794,120]
[320747528,1711543932550,-500.0,0.00055068,120]
[320747529,1711543932561,-617.82,0.00055068,120]
[320747530,1711543932572,-500.0,0.00055068,120]
[320747531,1711543932582,-500.0,0.00055068,120]
[320747532,1711543932594,-617.82,0.00055342,120]
[320747533,1711543932604,-500.0,0.00055342,120]
[320747534,1711543932616,-617.82,0.00055616,120]
[320747535,1711543932628,-1243.69,0.0005589,120]
[320747536,1711543932640,-617.82,0.0005589,120]
[320747537,1711543932651,-1243.69,0.00056164,120]
[320747538,1711543932664,-617.82,0.00056164,120]
[320747539,1711543932675,-1243.69,0.00056438,120]
[320747540,1711543932687,-617.82,0.00056438,120]
[320747541,1711543932698,-1243.69,0.00056712,120]
[320747542,1711543932708,-617.82,0.00056712,120]
[320747543,1711543932718,-1243.69,0.00056986,120]
[320747544,1711543932730,-151.0,0.0005726,120]
[320747545,1711543932739,-1243.69,0.0005726,120]
[320747546,1711543932753,-1243.69,0.00057534,120]
[320747547,1711543932764,-299.776316,0.00057808,120]
[320747548,1711543932774,-1243.69,0.00057808,120]
[320747549,1711543932785,-1214.64004648,0.00057882,120]
[320747550,1711543932800,-14195.41932588,0.00057882,120]
[320747551,1711543933105,840.97787019,0.00015921,2]
[320747552,1711543933130,2000.0,0.00015921,2]
[320747553,1711543933157,3427.16753997,0.00015921,2]
[320747554,1711543933973,-1363.92466986,0.00019,2]
[320747555,1711543933984,-240.82197326,0.0001999,2]
[320747556,1711543933994,-240.82197326,0.00020214,2]
[320747557,1711543934004,-240.82197326,0.00020435,2]
[320747558,1711543934014,-240.82197326,0.00021052,2]
[320747559,1711543934023,-150.0,0.00040164,2]
[320747560,1711543934034,-150.0,0.00040404,2]
[320747561,1711543934044,-150.0,0.00040502,2]
[320747562,1711543934054,-150.0,0.00040729,2]
[320747563,1711543934063,-150.0,0.00040729,2]
[320747564,1711543934073,-150.0,0.00040732,2]
[320747565,1711543934083,-150.0,0.00040734,2]
[320747566,1711543934092,-150.0,0.00040734,2]
[320747567,1711543934101,-150.0,0.0004074,2]
[320747568,1711543934110,-9.6291661,0.00040741,2]
[320747569,1711543934122,-140.3708339,0.00040741,2]
[320747570,1711543934131,-150.0,0.00040751,2]
[320747571,1711543934142,-44.8929284,0.00040753,2]
[320747572,1711543934162,-240.82197326,0.00021052,2]
[320747573,1711543934172,-105.1070716,0.00040753,2]
[320747574,1711543934621,-150.0,0.00040758,2]
[320747575,1711543934638,-26.08993786,0.00040762,2]
[320747576,1711543934757,-123.91006214,0.00040762,2]
[320747577,1711543934768,-150.0,0.00040773,2]
[320747578,1711543934778,-27.47406779,0.00040776,2]
[320747579,1711543934794,-122.52593221,0.00040776,2]
[320747580,1711543934804,-150.0,0.00040777,2]
[320747581,1711543934813,-150.0,0.00040783,2]
[320747582,1711543934823,-150.0,0.0004079,2]
[320747583,1711543934832,-150.0,0.00040795,2]
[320747584,1711543934843,-132.52054849,0.00040795,2]
[320747585,1711543934865,-240.82197326,0.00021052,2]
[320747586,1711543934874,-17.47945151,0.00040795,2]
[320747587,1711543934884,-149.83863897,0.00040797,2]
[320747588,1711543934897,-0.16136103,0.00040797,2]
[320747589,1711543934907,-150.0,0.00040797,2]
[320747590,1711543934917,-150.0,0.000408,2]
[320747591,1711543934927,-93.32970923,0.00040803,2]
[320747592,1711544071488,210.17913729,0.00015,2]
[320747595,1711544195585,150.0,0.00040032,30]
[320747596,1711544195955,250.0,0.00040032,30]
[320747597,1711544307856,-1592.7009425,0.00017699,2]
[320747598,1711544307886,-300.0,0.000177,2]
[320747599,1711544307913,-4367.45524311,0.00017799,2]
[320747600,1711544307941,-150.0,0.00017799,2]
[320747601,1711544307971,-150.0,0.00017799,2]
[320747602,1711544307999,-37362.2355,0.000178,2]
[320747603,1711544308027,-1000.0,0.000179,2]
[320747604,1711544308054,-353.9368751,0.000179,2]
[320747605,1711544308081,-5014.1749113,0.000179,2]
[320747606,1711544308108,-2505.41159512,0.00017982,2]
[320747607,1711544308136,-344.2334866,0.00017998,2]
[320747608,1711544308163,-1513.6604644,0.00017998,2]
[320747609,1711544308191,-225.39623599,0.00017998,2]
[320747610,1711544308219,-155.0,0.00017998,2]
[320747611,1711544308247,-486.3395356,0.00017998,2]
[320747612,1711544308275,-263.08835726,0.00017998,2]
[320747613,1711544308306,-184.19809528,0.00017999,2]
[320747614,1711544308335,-775.39396914,0.00017999,2]
[320747615,1711544308364,-497.30744272,0.00017999,2]
[320747616,1711544308396,-324426.89572282,0.00018,2]
[320747617,1711544308409,-1592.7009425,0.00018,2]
[320747618,1711544308420,-300.0,0.00018,2]
[320747619,1711544308436,-4367.45524311,0.00018,2]
[320747620,1711544308454,-150.0,0.00018,2]
[320747621,1711544308467,-150.0,0.00018,2]
[320747622,1711544308480,-37362.2355,0.00018,2]
[320747623,1711544308491,-1000.0,0.00018,2]
[320747624,1711544308503,-353.9368751,0.00018,2]
[320747625,1711544308514,-5014.1749113,0.00018,2]
[320747626,1711544308529,-2505.41159512,0.00018,2]
[320747627,1711544308540,-344.2334866,0.00018,2]
[320747628,1711544308552,-1513.6604644,0.00018,2]
[320747629,1711544308566,-225.39623599,0.00018,2]
[320747630,1711544308578,-155.0,0.00018,2]
[320747631,1711544308607,-486.3395356,0.00018,2]
[320747632,1711544308678,-263.08835726,0.00018,2]
[320747633,1711544308715,-184.19809528,0.00018,2]
[320747634,1711544308730,-775.39396914,0.00018,2]
[320747635,1711544308745,-497.30744272,0.00018,2]
[320747636,1711544308761,-1992403.03896894,0.00018,2]
[320747637,1711544346818,-500.0,0.00017999,2]
[320747638,1711544346840,-500.0,0.00018,2]
[320747639,1711544346851,-213125.0,0.00018,2]
[320747640,1711544382561,-747.23741813,0.00016199,2]
[320747641,1711544382584,-277.42081025,0.00017998,2]
[320747642,1711544382607,-155.0,0.00017998,2]
[320747643,1711544382632,-216.34177162,0.00017998,2]
[320747644,1711544466280,567.68168731,0.00017998,7]
[320747645,1711544495663,166.459301,0.00040112,30]
[320747647,1711544722120,779.14,0.0001589,2]
[320747648,1711544794462,150.0,0.00039768,30]
[320747649,1711544807181,-528.40833494,0.00016228,2]
[320747650,1711544830104,-310.05708302,0.0001613,2]
[320747651,1711544836116,-556.21509135,0.0001613,2]
[320747652,1711544836136,-866.27217437,0.00016131,2]
[320747653,1711544836156,-866.27217437,0.00016131,2]
[320747654,1711544836177,-278.15858616,0.00016228,2]
[320747655,1711544836199,-199.02220336,0.00016228,2]
[320747656,1711544836218,-155.0,0.00016229,2]
[320747657,1711544836237,-3475.68416001,0.0001623,2]
[320747658,1711544836257,-253.6076542,0.00016438,2]
[320747659,1711544836277,-3903.97,0.00017698,2]
[320747660,1711544836296,-576.58,0.00017778,2]
[320747661,1711544836314,-561.19822423,0.000178,2]
[320747662,1711544841098,-471.59789,0.00017609,2]
[320747663,1711544841120,-4491.75117577,0.000178,2]
[320747664,1711544841141,-500.0,0.00017865,2]
[320747665,1711544841161,-150.0,0.00017899,2]
[320747666,1711544841181,-300.0,0.00017899,2]
[320747667,1711544841204,-11760.574,0.000179,2]
[320747668,1711544841224,-3005.669,0.000179,2]
[320747669,1711544841246,-11272.2357428,0.000179,2]
[320747670,1711544849100,-74024.41249,0.000179,2]
[320747671,1711544849121,-37611.32224276,0.000179,2]
[320747672,1711544896645,-1165.89163453,0.00017899,2]
[320747674,1711544904970,-530.08303492,0.00017899,2]
[320747675,1711544914217,-155.0,0.00017898,2]
[320747676,1711544914240,-1845.0,0.000179,2]
[320747679,1711544969153,-484.50959772,0.00017799,2]
[320747680,1711544969174,-683.33973288,0.000178,2]
[320747685,1711545032422,-331.95445544,0.0001771,2]
[320747686,1711545032433,-1192.696255,0.00017711,2]
[320747687,1711545032442,-155.0,0.00017799,2]
[320747688,1711545032452,-3005.669,0.000178,2]
[320747689,1711545032461,-150.0,0.00017899,2]
[320747690,1711545032470,-5101.0751,0.000179,2]
[320747691,1711545032480,-250.1672,0.000179,2]
[320747693,1711545032490,-172.02436433,0.000179,2]
[320747694,1711545032499,-2204.28353619,0.000179,2]
[320747697,1711545032508,-3916.56581208,0.000179,2]
[320747699,1711545032520,-176.40035604,0.000179,2]
[320747700,1711545032530,-857.99697051,0.000179,2]
[320747701,1711545032542,-5838.26291273,0.000179,2]
[320747702,1711545032553,-992.20663566,0.000179,2]
[320747703,1711545032584,-1381.73052307,0.000179,2]
[320747704,1711545032597,-8499.50000605,0.000179,2]
[320747705,1711545032611,-8776.59221931,0.000179,2]
[320747706,1711545032622,-2324.12616336,0.000179,2]
[320747707,1711545032634,-331.98658142,0.000179,2]
[320747708,1711545032646,-7206.18957804,0.000179,2]
[320747709,1711545032683,-623.58531872,0.000179,2]
[320747710,1711545032696,-9093.62911163,0.000179,2]
[320747711,1711545032706,-522.9758168,0.000179,2]
[320747712,1711545032715,-216.99033572,0.000179,2]
[320747713,1711545032725,-1484.3927182,0.000179,2]
[320747714,1711545032734,-152.90689145,0.0001799,2]
[320747715,1711545032744,-152.90689145,0.0001799,2]
[320747716,1711545032753,-405.20786325,0.00017998,2]
[320747717,1711545032763,-1369.76176017,0.00017998,2]
[320747718,1711545032772,-198.92759589,0.00017998,2]
[320747719,1711545032782,-276.92906321,0.00017998,2]
[320747720,1711545032792,-235.35674052,0.00017998,2]
[320747721,1711545032801,-218.58736696,0.00017998,2]
[320747722,1711545032811,-33289.93174357,0.00017998,2]
[320747723,1711545032821,-812.17611457,0.00017998,2]
[320747725,1711545032830,-215.13254369,0.00017998,2]
[320747728,1711545032840,-155.0000007,0.00017998,2]
[320747731,1711545032850,-548.84635004,0.00017998,2]
[320747733,1711545032860,-485.65085822,0.00017998,2]
[320747735,1711545032870,-564.72062551,0.00017998,2]
[320747736,1711545032879,-222.6705156,0.00017998,2]
[320747738,1711545032889,-166.36647497,0.00017999,2]
[320747740,1711545032899,-265.84716785,0.00017999,2]
[320747742,1711545032909,-250.1172744,0.00017999,2]
[320747744,1711545032918,-225694.14755479,0.00018,2]
[320747751,1711545032980,-581.87902999,0.00018,2]
[320747753,1711545032992,-53816.25334441,0.00018,2]
[320748056,1711545038282,-18699.37661726,0.00018,2]
[320748059,1711545038299,-1343.9,0.00018,2]
[320748061,1711545038315,-414.940832,0.00018,2]
[320748063,1711545038330,-691.0,0.00018,2]
[320748065,1711545038345,-3543.10040345,0.00018,2]
[320748069,1711545038379,-27034.41624878,0.00018,2]
[320748071,1711545038395,-1009.46081503,0.00018,2]
[320748073,1711545038410,-47810.49606573,0.00018,2]
[320748077,1711545038441,-183906.50542486,0.00018,2]
[320748079,1711545038456,-1109.08955344,0.00018,2]
[320748084,1711545038496,-814.00159597,0.00018,2]
[320748086,1711545038512,-355.83387106,0.00018,2]
[320748088,1711545038528,-14670160.58964088,0.00018,2]
[320748090,1711545038541,-155.0,0.00018,2]
[320748092,1711545038553,-16162.0,0.00018007,2]
[320748093,1711545038565,-250.0,0.00018079,2]
[320748094,1711545038577,-150.99,0.00018079,2]
[320748095,1711545038590,-779.14,0.00018153,2]
[320748096,1711545038602,-167.03,0.00018248,2]
[320748098,1711545038618,-673.62,0.00018248,2]
[320748100,1711545038630,-499.99,0.00018248,2]
[320748103,1711545038643,-176.3,0.00018326,2]
[320748105,1711545038655,-1618.76,0.00018384,2]
[320748107,1711545038668,-200.0,0.00018476,2]
[320748112,1711545038681,-500.0,0.00018484,2]
[320748115,1711545038693,-1847.06,0.00018581,2]
[320748118,1711545038705,-935.19,0.00018599,2]
[320748123,1711545038717,-150.0,0.000186,2]
[320748126,1711545038729,-515.86,0.000186,2]
[320748129,1711545038741,-300.29715887,0.00018699,2]
[320748132,1711545038753,-151.35,0.000189,2]
[320748137,1711545038765,-414.82,0.000189,2]
[320748140,1711545038777,-152.76,0.000189,2]
[320748143,1711545038789,-318.31,0.000189,2]
[320748146,1711545038801,-517.72,0.000189,2]
[320748151,1711545038813,-517.72,0.000189,2]
[320748154,1711545038826,-1218.58188732,0.00018999,2]
[320748157,1711545038838,-477.69324998,0.00019,2]
[320748160,1711545038850,-232.55765196,0.00019,2]
[320748162,1711545038865,-297.29902466,0.00019,2]
[320748164,1711545038878,-409.5973087,0.00019,2]
[320748167,1711545038890,-409.5973087,0.00019,2]
[320748169,1711545038902,-409.5973087,0.00019,2]
[320748171,1711545038915,-409.5973087,0.00019,2]
[320748174,1711545038928,-409.5973087,0.00019,2]
[320748176,1711545038940,-409.5973087,0.00019,2]
[320748178,1711545038952,-409.5973087,0.00019,2]
[320748181,1711545038964,-409.5973087,0.00019,2]
[320748183,1711545038977,-409.5973087,0.00019,2]
[320748185,1711545038989,-409.5973087,0.00019,2]
[320748187,1711545039002,-409.5973087,0.00019,2]
[320748190,1711545039014,-409.5973087,0.00019,2]
[320748192,1711545039026,-409.5973087,0.00019,2]
[320748194,1711545039039,-409.5973087,0.00019,2]
[320748196,1711545039050,-409.5973087,0.00019,2]
[320748199,1711545039064,-409.5973087,0.00019,2]
[320748201,1711545039076,-409.5973087,0.00019,2]
[320748203,1711545039088,-409.5973087,0.00019,2]
[320748206,1711545039100,-409.5973087,0.00019,2]
[320748208,1711545039115,-409.5973087,0.00019,2]
[320748210,1711545039127,-409.5973087,0.00019,2]
[320748213,1711545039139,-409.5973087,0.00019,2]
[320748215,1711545039151,-409.5973087,0.00019,2]
[320748217,1711545039163,-409.5973087,0.00019,2]
[320748220,1711545039175,-409.5973087,0.00019,2]
[320748222,1711545039187,-409.5973087,0.00019,2]
[320748224,1711545039198,-409.5973087,0.00019,2]
[320748226,1711545039210,-409.5973087,0.00019,2]
[320748228,1711545039222,-409.5973087,0.00019,2]
[320748231,1711545039233,-409.5973087,0.00019,2]
[320748233,1711545039245,-409.5973087,0.00019,2]
[320748235,1711545039259,-409.5973087,0.00019,2]
[320748238,1711545039271,-409.5973087,0.00019,2]
[320748240,1711545039282,-409.5973087,0.00019,2]
[320748242,1711545039294,-409.5973087,0.00019,2]
[320748244,1711545039306,-409.5973087,0.00019,2]
[320748247,1711545039318,-409.5973087,0.00019,2]
[320748249,1711545039330,-409.5973087,0.00019,2]
[320748251,1711545039342,-409.5973087,0.00019,2]
[320748254,1711545039355,-409.5973087,0.00019,2]
[320748256,1711545039370,-409.5973087,0.00019,2]
[320748258,1711545039382,-409.5973087,0.00019,2]
[320748261,1711545039393,-409.5973087,0.00019,2]
[320748263,1711545039405,-409.5973087,0.00019,2]
[320748265,1711545039416,-409.5973087,0.00019,2]
[320748267,1711545039427,-409.5973087,0.00019,2]
[320748270,1711545039439,-409.5973087,0.00019,2]
[320748272,1711545039450,-409.5973087,0.00019,2]
[320748274,1711545039462,-409.5973087,0.00019,2]
[320748276,1711545039474,-409.5973087,0.00019,2]
[320748279,1711545039485,-832.71737218,0.00019,2]
[320748281,1711545039496,-832.71737218,0.00019,2]
[320748283,1711545039507,-832.71737218,0.00019,2]
[320748285,1711545039519,-832.71737218,0.00019,2]
[320748288,1711545039531,-832.71737218,0.00019,2]
[320748289,1711545039543,-832.71737218,0.00019,2]
[320748290,1711545039555,-832.71737218,0.00019,2]
[320748291,1711545039568,-832.71737218,0.00019,2]
[320748292,1711545039579,-832.71737218,0.00019,2]
[320748293,1711545039590,-832.71737218,0.00019,2]
[320748294,1711545039603,-832.71737218,0.00019,2]
[320748295,1711545039617,-832.71737218,0.00019,2]
[320748296,1711545039629,-832.71737218,0.00019,2]
[320748297,1711545039641,-832.71737218,0.00019,2]
[320748298,1711545039652,-832.71737218,0.00019,2]
[320748299,1711545039664,-832.71737218,0.00019,2]
[320748300,1711545039677,-832.71737218,0.00019,2]
[320748301,1711545039689,-832.71737218,0.00019,2]
[320748302,1711545039699,-832.71737218,0.00019,2]
[320748303,1711545039708,-832.71737218,0.00019,2]
[320748304,1711545039718,-832.71737218,0.00019,2]
[320748305,1711545039727,-832.71737218,0.00019,2]
[320748306,1711545039737,-832.71737218,0.00019,2]
[320748307,1711545039746,-832.71737218,0.00019,2]
[320748308,1711545039756,-832.71737218,0.00019,2]
[320748309,1711545039765,-832.71737218,0.00019,2]
[320748310,1711545039775,-832.71737218,0.00019,2]
[320748312,1711545040088,-832.71737218,0.00019,2]
[320748313,1711545040117,-832.71737218,0.00019,2]
[320748314,1711545040136,-832.71737218,0.00019,2]
[320748315,1711545040146,-832.71737218,0.00019,2]
[320748316,1711545040156,-832.71737218,0.00019,2]
[320748317,1711545040165,-832.71737218,0.00019,2]
[320748318,1711545040174,-832.71737218,0.00019,2]
[320748319,1711545040184,-832.71737218,0.00019,2]
[320748320,1711545040194,-832.71737218,0.00019,2]
[320748321,1711545040203,-832.71737218,0.00019,2]
[320748322,1711545040213,-832.71737218,0.00019,2]
[320748323,1711545040223,-832.71737218,0.00019,2]
[320748324,1711545040233,-832.71737218,0.00019,2]
[320748325,1711545040244,-832.71737218,0.00019,2]
[320748326,1711545040255,-832.71737218,0.00019,2]
[320748327,1711545040266,-832.71737218,0.00019,2]
[320748328,1711545040275,-832.71737218,0.00019,2]
[320748329,1711545040285,-832.71737218,0.00019,2]
[320748330,1711545040294,-832.71737218,0.00019,2]
[320748331,1711545040303,-832.71737218,0.00019,2]
[320748332,1711545040312,-832.71737218,0.00019,2]
[320748333,1711545040321,-832.71737218,0.00019,2]
[320748334,1711545040330,-832.71737218,0.00019,2]
[320748335,1711545040339,-832.71737218,0.00019,2]
[320748336,1711545040348,-832.71737218,0.00019,2]
[320748337,1711545040358,-832.71737218,0.00019,2]
[320748338,1711545040369,-832.71737218,0.00019,2]
[320748339,1711545040379,-832.71737218,0.00019,2]
[320748340,1711545040388,-832.71737218,0.00019,2]
[320748341,1711545040397,-832.71737218,0.00019,2]
[320748342,1711545040407,-832.71737218,0.00019,2]
[320748343,1711545040415,-832.71737218,0.00019,2]
[320748344,1711545040424,-832.71737218,0.00019,2]
[320748345,1711545040433,-832.71737218,0.00019,2]
[320748346,1711545040442,-832.71737218,0.00019,2]
[320748347,1711545040451,-832.71737218,0.00019,2]
[320748348,1711545040460,-832.71737218,0.00019,2]
[320748349,1711545040469,-832.71737218,0.00019,2]
[320748350,1711545040478,-832.71737218,0.00019,2]
[320748351,1711545040487,-832.71737218,0.00019,2]
[320748352,1711545040496,-832.71737218,0.00019,2]
[320748353,1711545040505,-832.71737218,0.00019,2]
[320748354,1711545040514,-832.71737218,0.00019,2]
[320748355,1711545040523,-832.71737218,0.00019,2]
[320748356,1711545040533,-832.71737218,0.00019,2]
[320748357,1711545040541,-832.71737218,0.00019,2]
[320748358,1711545040550,-832.71737218,0.00019,2]
[320748359,1711545040559,-832.71737218,0.00019,2]
[320748360,1711545040568,-832.71737218,0.00019,2]
[320748361,1711545040578,-832.71737218,0.00019,2]
[320748362,1711545040587,-832.71737218,0.00019,2]
[320748363,1711545040596,-832.71737218,0.00019,2]
[320748364,1711545040605,-832.71737218,0.00019,2]
[320748365,1711545040616,-832.71737218,0.00019,2]
[320748366,1711545040625,-832.71737218,0.00019,2]
[320748367,1711545040634,-832.71737218,0.00019,2]
[320748369,1711545040643,-832.71737218,0.00019,2]
[320748370,1711545040652,-832.71737218,0.00019,2]
[320748372,1711545040661,-832.71737218,0.00019,2]
[320748374,1711545040670,-832.71737218,0.00019,2]
[320748376,1711545040680,-832.71737218,0.00019,2]
[320748378,1711545040689,-832.71737218,0.00019,2]
[320748380,1711545040699,-832.71737218,0.00019,2]
[320748382,1711545040709,-832.71737218,0.00019,2]
[320748384,1711545040719,-832.71737218,0.00019,2]
[320748386,1711545040729,-832.71737218,0.00019,2]
[320748388,1711545040739,-832.71737218,0.00019,2]
[320748390,1711545040749,-832.71737218,0.00019,2]
[320748392,1711545040758,-832.71737218,0.00019,2]
[320748394,1711545040767,-167.03,0.00019,2]
[320748396,1711545040776,-321.57082383,0.00019178,2]
[320748398,1711545040786,-500.0,0.00019178,2]
[320748400,1711545040795,-500.0,0.00019178,2]
[320748401,1711545040806,-500.0,0.00019178,2]
[320748402,1711545040816,-500.0,0.00019178,2]
[320748403,1711545040826,-500.0,0.00019178,2]
[320748404,1711545040838,-177.20746229,0.00019178,2]
[320748405,1711545040850,-525.23234558,0.00019178,2]
[320748406,1711545040862,-281.20442799,0.00019178,2]
[320748407,1711545040873,-585.48872906,0.00019178,2]
[320748408,1711545040884,-422.28792937,0.00019178,2]
[320748409,1711545040894,-350.0,0.00019178,2]
[320748410,1711545040904,-500.0,0.00019178,2]
[320748411,1711545040915,-500.0,0.00019178,2]
[320748412,1711545040925,-337.49516958,0.00019178,2]
[320748413,1711545040935,-401.24855088,0.00019178,2]
[320748414,1711545040945,-210.0,0.00019178,2]
[320748415,1711545040955,-13027.57,0.00019178,2]
[320748416,1711545040964,-156.55,0.0001918,2]
[320748417,1711545040974,-156.55,0.0001918,2]
[320748418,1711545040983,-156.55,0.0001918,2]
[320748419,1711545040992,-156.55,0.0001918,2]
[320748420,1711545041002,-156.55,0.0001918,2]
[320748421,1711545041011,-156.55,0.0001918,2]
[320748422,1711545041021,-156.55,0.0001918,2]
[320748423,1711545041034,-156.55,0.0001918,2]
[320748424,1711545041044,-3846.71319902,0.000192,2]
[320748425,1711545041054,-422.8,0.000192,2]
[320748426,1711545041064,-265.55,0.000192,2]
[320748427,1711545041073,-190.55,0.000192,2]
[320748428,1711545041083,-169.41,0.00019218,2]
[320748429,1711545041092,-169.41,0.00019223,2]
[320748430,1711545041102,-169.41,0.00019228,2]
[320748431,1711545041114,-169.41,0.00019233,2]
[320748432,1711545041123,-169.41,0.00019238,2]
[320748433,1711545041132,-169.41,0.00019243,2]
[320748434,1711545041141,-169.41,0.00019248,2]
[320748435,1711545041150,-169.41,0.00019254,2]
[320748436,1711545041159,-169.41,0.00019259,2]
[320748437,1711545041169,-169.41,0.00019264,2]
[320748438,1711545041178,-169.41,0.00019269,2]
[320748439,1711545041187,-169.41,0.00019274,2]
[320748440,1711545041197,-169.41,0.00019279,2]
[320748441,1711545041205,-169.41,0.00019284,2]
[320748442,1711545041215,-169.41,0.00019289,2]
[320748443,1711545041224,-169.41,0.00019294,2]
[320748444,1711545041233,-169.41,0.00019299,2]
[320748445,1711545041242,-169.41,0.00019304,2]
[320748446,1711545041252,-169.41,0.00019309,2]
[320748447,1711545041261,-169.41,0.00019314,2]
[320748448,1711545041271,-1852.42,0.00019566,2]
[320748449,1711545041281,-186.93,0.00019608,2]
[320748450,1711545041291,-167.21,0.00019624,2]
[320748451,1711545041300,-535.08,0.00019664,2]
[320748452,1711545041310,-250.0,0.00019664,2]
[320748453,1711545041319,-167.03,0.00019753,2]
[320748454,1711545041329,-152.0813049,0.000199,2]
[320748455,1711545041338,-186.66881901,0.000199,2]
[320748456,1711545041347,-151.57,0.00019953,2]
[320748457,1711545041357,-2342.08393912,0.0002,2]
[320748458,1711545041368,-1249.19045626,0.0002,2]
[320748459,1711545041377,-155.0,0.0002,2]
[320748460,1711545041386,-3045.64301195,0.0002,2]
[320748461,1711545041395,-854.93307856,0.0002,2]
[320748462,1711545041404,-285.0,0.0002,2]
[320748463,1711545041414,-155.0,0.0002,2]
[320748464,1711545041423,-591.0994759,0.0002,2]
[320748465,1711545041433,-155.0,0.0002,2]
[320748466,1711545041444,-259.73532178,0.0002,2]
[320748467,1711545041453,-1757.21056864,0.0002,2]